fUST/lending_fUST_20241115
["ID","MTS","AMOUNT","RATE_DAILY","PERIOD"]
[342242987,1731634238065,-187.04559618,0.00016238,2]
[342242988,1731634238075,-5118.05689187,0.00016238,2]
[342242989,1731634238084,-300.0,0.00016299,2]
[342242990,1731634238094,-300.0,0.00016299,2]
[342242991,1731634238103,-115320.46126342,0.000163,2]
[342242992,1731634238114,-7062.15169198,0.000163,2]
[342243025,1731634243228,-216.26797086,0.000163,2]
[342243026,1731634243239,-5907.73202914,0.000163,2]
[342243030,1731634267857,539.41,0.00010959,2]
[342243031,1731634303047,532.0014996,0.00027,60]
[342243033,1731634498180,1141.70647,0.00027,60]
[342243035,1731634877330,162.13203485,0.00027,60]
[342243040,1731635366288,-400.0,0.00013973,2]
[342243041,1731635366308,-93.16922103,0.00014304,2]
[342243051,1731635432265,-112.80848907,0.00014304,2]
[342243052,1731635432274,-6284.68030389,0.00015223,2]
[342243129,1731635443247,-301.3466562,0.00015234,2]
[342243130,1731635443257,-199.94111998,0.00015999,2]
[342243131,1731635443268,-100.05888002,0.00015999,2]
[342243132,1731635443278,-300.0,0.00015999,2]
[342243133,1731635443286,-266.89,0.00016,2]
[342243134,1731635443295,-1163.98482422,0.00016113,2]
[342243135,1731635443307,-1028.07743484,0.00016113,2]
[342243144,1731635446182,-373.55379182,0.00016113,2]
[342243145,1731635446191,-288.67560044,0.000162,2]
[342243146,1731635446201,-150.0,0.000163,2]
[342243147,1731635446211,-291.74676665,0.00016338,2]
[342243148,1731635446220,-7676.62384109,0.00016338,2]
[342243149,1731635480050,21299.84,0.00027,60]
[342243150,1731635782391,150.0,0.00027,60]
[342243151,1731635836068,150.0,0.00027,60]
[342243152,1731636209217,186.38298881,0.00027,60]
[342243155,1731636556140,-295.96,0.00013973,2]
[342243175,1731636632451,-104.04,0.00013973,2]
[342243177,1731636632461,-165.8172914,0.0001513,2]
[342243179,1731636632470,-1000.0,0.000155,2]
[342243180,1731636632481,-165.3310086,0.00015767,2]
[342243181,1731636632494,-334.6689914,0.00015767,2]
[342243182,1731636632503,-500.0,0.00015767,2]
[342243183,1731636632513,-466.61359601,0.00015948,2]
[342243184,1731636632523,-1000.0,0.00016,2]
[342243185,1731636632533,-300.0,0.00016045,2]
[342243186,1731636632542,-300.0,0.00016045,2]
[342243187,1731636632552,-2103.1611,0.00016046,2]
[342243188,1731636632561,-633.0,0.00016046,2]
[342243189,1731636632571,-222.8019183,0.00016237,2]
[342243190,1731636632581,-286.21310059,0.00016237,2]
[342243191,1731636632590,-500.0,0.00016237,2]
[342243192,1731636632600,-500.0,0.00016237,2]
[342243193,1731636632609,-500.0,0.00016237,2]
[342243194,1731636632619,-500.0,0.00016237,2]
[342243195,1731636632628,-500.0,0.00016237,2]
[342243196,1731636632637,-500.0,0.00016237,2]
[342243197,1731636632647,-500.0,0.00016237,2]
[342243198,1731636632657,-500.0,0.00016237,2]
[342243199,1731636632666,-500.0,0.00016237,2]
[342243200,1731636632675,-500.0,0.00016237,2]
[342243201,1731636632685,-500.0,0.00016237,2]
[342243202,1731636632695,-500.0,0.00016237,2]
[342243203,1731636632909,-500.0,0.00016237,2]
[342243204,1731636632919,-500.0,0.00016237,2]
[342243205,1731636632928,-389.29618835,0.00016237,2]
[342243206,1731636632940,-500.0,0.00016237,2]
[342243207,1731636632950,-500.0,0.00016237,2]
[342243208,1731636632959,-427.13029509,0.00016237,2]
[342243209,1731636632970,-500.0,0.00016237,2]
[342243210,1731636632983,-500.0,0.00016237,2]
[342243211,1731636632993,-500.0,0.00016237,2]
[342243212,1731636633002,-500.0,0.00016237,2]
[342243213,1731636633012,-500.0,0.00016237,2]
[342243214,1731636633021,-596.26670413,0.00016237,2]
[342243215,1731636633031,-500.0,0.00016237,2]
[342243216,1731636633040,-500.0,0.00016237,2]
[342243217,1731636633051,-500.0,0.00016237,2]
[342243218,1731636633061,-500.0,0.00016237,2]
[342243219,1731636633071,-500.0,0.00016237,2]
[342243220,1731636633081,-500.0,0.00016237,2]
[342243221,1731636633091,-500.0,0.00016237,2]
[342243222,1731636633101,-500.0,0.00016237,2]
[342243223,1731636633114,-500.0,0.00016237,2]
[342243224,1731636633129,-500.0,0.00016237,2]
[342243225,1731636633139,-500.0,0.00016237,2]
[342243226,1731636633149,-500.0,0.00016237,2]
[342243227,1731636633160,-500.0,0.00016237,2]
[342243228,1731636633169,-500.0,0.00016237,2]
[342243229,1731636633179,-500.0,0.00016237,2]
[342243230,1731636633188,-500.0,0.00016237,2]
[342243231,1731636633198,-500.0,0.00016237,2]
[342243232,1731636633207,-500.0,0.00016237,2]
[342243233,1731636633217,-500.0,0.00016237,2]
[342243234,1731636633229,-500.0,0.00016237,2]
[342243235,1731636633244,-500.0,0.00016237,2]
[342243236,1731636633253,-500.0,0.00016237,2]
[342243237,1731636633264,-500.0,0.00016237,2]
[342243238,1731636633273,-500.0,0.00016237,2]
[342243239,1731636633283,-500.0,0.00016237,2]
[342243240,1731636633292,-500.0,0.00016237,2]
[342243241,1731636633302,-500.0,0.00016237,2]
[342243242,1731636633311,-500.0,0.00016237,2]
[342243243,1731636633321,-500.0,0.00016237,2]
[342243244,1731636633331,-500.0,0.00016237,2]
[342243245,1731636633340,-500.0,0.00016237,2]
[342243246,1731636633350,-500.0,0.00016237,2]
[342243247,1731636633359,-500.0,0.00016237,2]
[342243248,1731636633368,-500.0,0.00016237,2]
[342243249,1731636633378,-46289.85393752,0.00016238,2]
[342243250,1731636633391,-3519.79999999,0.00016238,2]
[342243292,1731636638645,-184.247,0.00016153,2]
[342243293,1731636638656,-247.5099881,0.00016238,2]
[342243294,1731636638666,-62.39812637,0.00016238,2]
[342243302,1731636643393,-6764.91433391,0.00016238,2]
[342243305,1731636643585,-3758.58112323,0.00016238,2]
[342243319,1731636647790,448.03,0.00010959,2]
[342243320,1731636658291,373.36,0.00010959,2]
[342243321,1731636668932,311.13,0.00010959,2]
[342243322,1731636679707,259.28,0.00010959,2]
[342243323,1731636690296,216.07,0.00010959,2]
[342243324,1731636700920,180.05,0.00010959,2]
[342243325,1731636711512,150.05,0.00010959,2]
[342243326,1731636722180,750.25,0.00010959,2]
[342243327,1731636859702,643.5,0.00027,60]
[342243328,1731636870640,730.0,0.00027,60]
[342243329,1731637491395,35411.84,0.0001107,2]
[342243330,1731637565828,351.43,0.00027,60]
[342243332,1731637751107,-400.0,0.00013973,2]
[342243333,1731637751130,-749.302988,0.00014483,2]
[342243334,1731637751152,-243.4824022,0.00014727,2]
[342243335,1731637751174,-946.8476078,0.00014727,2]
[342243336,1731637751196,-300.0,0.0001476,2]
[342243337,1731637751222,-300.0,0.0001476,2]
[342243338,1731637751244,-6761.61245197,0.00014761,2]
[342243344,1731637789719,200.0,0.0001,2]
[342243494,1731637838585,-400.0,0.00013973,2]
[342243495,1731637838595,-90.000006,0.00014872,2]
[342243500,1731637840522,-209.999994,0.00014872,2]
[342243501,1731637840532,-300.0,0.00014872,2]
[342243502,1731637840541,-2268.33125937,0.00014873,2]
[342243511,1731637843525,-11061.29818523,0.00014873,2]
[342243513,1731637843535,-749.302988,0.00015168,2]
[342243514,1731637843544,-165.314923,0.00015252,2]
[342243516,1731637843553,-165.314923,0.00015265,2]
[342243517,1731637843562,-165.314923,0.00015278,2]
[342243518,1731637843571,-165.314923,0.0001529,2]
[342243519,1731637843580,-165.314923,0.00015303,2]
[342243520,1731637843589,-165.314923,0.00015316,2]
[342243521,1731637843598,-165.314923,0.00015328,2]
[342243522,1731637843607,-749.302988,0.00015853,2]
[342243523,1731637843616,-310.0,0.00015899,2]
[342243524,1731637843625,-200.0,0.0001597,2]
[342243525,1731637843635,-508.03,0.00016,2]
[342243526,1731637843647,-5159.930586,0.00016138,2]
[342243542,1731637846527,-4817.12085123,0.00016138,2]
[342243543,1731637846536,-155.2579985,0.00016247,2]
[342243544,1731637846545,-153.0,0.00016247,2]
[342243545,1731637846554,-153.0,0.00016247,2]
[342243546,1731637846564,-420.0,0.00016279,2]
[342243547,1731637846573,-11571.43596354,0.00016322,2]
[342243548,1731637846583,-165.00665873,0.00016322,2]
[342243549,1731637846592,-224.71612529,0.00016337,2]
[342243550,1731637846602,-1794.95653292,0.00016337,2]
[342243551,1731637855953,350.25,0.00010959,2]
[342243559,1731638642887,368.3945253,0.00027,60]
[342243575,1731638812471,-400.0,0.00013973,2]
[342243576,1731638812492,-210.357121,0.00014439,2]
[342243577,1731638812513,-249.767663,0.00015012,2]
[342243578,1731638812548,-1695.53105512,0.0001515,2]
[342243585,1731639009916,449.0,0.00027,120]
[342243593,1731639032859,-844.33407686,0.00014962,2]
[342243595,1731639038931,-963.46652834,0.00014962,2]
[342243596,1731639038940,-243.4824022,0.00015023,2]
[342243597,1731639038949,-1087.45311428,0.0001515,2]
[342243598,1731639038959,-946.8476078,0.00015337,2]
[342243599,1731639038968,-249.767663,0.00015697,2]
[342243600,1731639038978,-465.0806798,0.00015908,2]
[342243601,1731639038987,-1749.510563,0.00016,2]
[342243602,1731639038997,-6839.36443543,0.00016059,2]
[342243603,1731639039006,-300.0,0.00016138,2]
[342243604,1731639039015,-300.0,0.00016138,2]
[342243605,1731639039025,-165.00665874,0.00016238,2]
[342243606,1731639039034,-5750.02034741,0.00016238,2]
[342243626,1731639043874,-283.9617599,0.00016238,2]
[342243631,1731639046855,-3504.06072807,0.00016238,2]
[342244694,1731640233096,-253.5710826,0.00013369,2]
[342244696,1731640233106,-380.89342304,0.00013973,2]
[342244730,1731640239040,-19.10657696,0.00013973,2]
[342244732,1731640239051,-1362.600091,0.00014021,2]
[342244733,1731640239060,-1213.5533357,0.00014142,2]
[342244734,1731640239069,-162.183094,0.00014213,2]
[342244735,1731640239078,-1362.600091,0.00014706,2]
[342244736,1731640239089,-300.0,0.00014782,2]
[342244737,1731640239099,-300.0,0.00014782,2]
[342244738,1731640239108,-24880.0,0.00014783,2]
[342244739,1731640239117,-207.07130602,0.00014862,2]
[342244740,1731640239129,-173.5711253,0.00014919,2]
[342244741,1731640239139,-1362.600091,0.00015391,2]
[342244742,1731640239148,-223.0000899,0.00015578,2]
[342244743,1731640239157,-314.1649161,0.00015578,2]
[342244744,1731640239166,-212.2422435,0.00015578,2]
[342244745,1731640239176,-307.1379723,0.00015578,2]
[342244746,1731640239186,-282.21928905,0.00015928,2]
[342244747,1731640239195,-8619.72039547,0.00016117,2]
[342244748,1731640239205,-160.06737727,0.00016138,2]
[342244749,1731640239213,-420.0,0.00016181,2]
[342244750,1731640239222,-151.0,0.00016237,2]
[342244751,1731640239232,-151.0,0.00016237,2]
[342244752,1731640239242,-151.0,0.00016237,2]
[342244753,1731640239252,-325.923002,0.00016237,2]
[342244754,1731640239262,-325.923002,0.00016237,2]
[342244755,1731640239272,-260.38410778,0.00016237,2]
[342244756,1731640239281,-166.03176925,0.00016237,2]
[342244757,1731640239291,-516.26108893,0.00016237,2]
[342244758,1731640239301,-497.22946044,0.00016237,2]
[342244759,1731640239311,-500.0,0.00016237,2]
[342244760,1731640239320,-500.0,0.00016237,2]
[342244761,1731640239329,-500.0,0.00016237,2]
[342244762,1731640239339,-500.0,0.00016237,2]
[342244763,1731640239348,-377.62156371,0.00016237,2]
[342244764,1731640239358,-500.0,0.00016237,2]
[342244765,1731640239367,-500.0,0.00016237,2]
[342244766,1731640239380,-500.0,0.00016237,2]
[342244767,1731640239389,-500.0,0.00016237,2]
[342244768,1731640239398,-500.0,0.00016237,2]
[342244769,1731640239407,-500.0,0.00016237,2]
[342244770,1731640239416,-500.0,0.00016237,2]
[342244771,1731640239424,-500.0,0.00016237,2]
[342244772,1731640239434,-500.0,0.00016237,2]
[342244773,1731640239443,-500.0,0.00016237,2]
[342244774,1731640239451,-500.0,0.00016237,2]
[342244775,1731640239461,-505.55606615,0.00016237,2]
[342244777,1731640239470,-500.0,0.00016237,2]
[342244778,1731640239479,-500.0,0.00016237,2]
[342244779,1731640239488,-500.0,0.00016237,2]
[342244780,1731640239497,-500.0,0.00016237,2]
[342244781,1731640239506,-500.0,0.00016237,2]
[342244782,1731640239515,-500.0,0.00016237,2]
[342244783,1731640239524,-511.86879603,0.00016237,2]
[342244784,1731640239533,-500.0,0.00016237,2]
[342244785,1731640239542,-500.0,0.00016237,2]
[342244786,1731640239555,-500.0,0.00016237,2]
[342244787,1731640239565,-500.0,0.00016237,2]
[342244788,1731640239574,-500.0,0.00016237,2]
[342244789,1731640239583,-500.0,0.00016237,2]
[342244790,1731640239592,-500.0,0.00016237,2]
[342244791,1731640239601,-500.0,0.00016237,2]
[342244792,1731640239610,-500.0,0.00016237,2]
[342244793,1731640239619,-500.0,0.00016237,2]
[342244794,1731640239630,-325.51997524,0.00016237,2]
[342244795,1731640239639,-162.66270669,0.00016237,2]
[342244796,1731640239648,-151.0,0.00016238,2]
[342244797,1731640239657,-151.0,0.00016238,2]
[342244798,1731640239666,-151.0,0.00016238,2]
[342244799,1731640239675,-325.923002,0.00016238,2]
[342244800,1731640239685,-325.923002,0.00016238,2]
[342244801,1731640239694,-2322.05591036,0.00016238,2]
[342244802,1731640239703,-173219.57323127,0.00016238,2]
[342244803,1731640239715,-323.81791502,0.00016238,2]
[342244804,1731640239727,-1092.28,0.00016238,2]
[342244824,1731640243727,-984.03000556,0.00016238,2]
[342244860,1731640819159,565.146472,0.00027,60]
[342244920,1731641432166,-194.79445238,0.00013269,2]
[342244921,1731641432176,-400.0,0.00013973,2]
[342244922,1731641432186,-226.935551,0.00015103,2]
[342244923,1731641432195,-52.98302964,0.00015868,2]
[342244934,1731641443171,-412.02100435,0.00015868,2]
[342244935,1731641443181,-200.0,0.0001595,2]
[342244937,1731641443190,-8619.72039547,0.00015998,2]
[342244938,1731641443199,-300.0,0.00015999,2]
[342244940,1731641443210,-300.0,0.00015999,2]
[342244941,1731641443219,-992.95601337,0.00016,45]
[342244942,1731641443229,-212.2422435,0.00016,2]
[342244943,1731641443238,-303.9936668,0.00016,2]
[342244944,1731641443248,-400.9142346,0.00016,2]
[342244945,1731641443258,-212.2422435,0.00016,2]
[342244946,1731641443267,-212.2422435,0.00016,2]
[342244947,1731641443277,-773.01149385,0.00016,2]
[342244948,1731641443286,-600.0,0.00016044,2]
[342244949,1731641443296,-160.06737727,0.00016185,2]
[342244950,1731641443306,-600.0,0.00016211,2]
[342244951,1731641443315,-227.846791,0.00016237,2]
[342244952,1731641443325,-151.232964,0.00016237,2]
[342244953,1731641443335,-227.846791,0.00016237,2]
[342244954,1731641443344,-151.0,0.00016237,2]
[342244955,1731641443355,-151.0,0.00016237,2]
[342244956,1731641443364,-394.491471,0.00016237,2]
[342244957,1731641443374,-394.491471,0.00016237,2]
[342244958,1731641443384,-359.543548,0.00016237,2]
[342244959,1731641443395,-359.543548,0.00016237,2]
[342244960,1731641443409,-151.0,0.00016237,2]
[342244961,1731641443419,-188.1461927,0.00016238,2]
[342244962,1731641443429,-227.846791,0.00016238,2]
[342244963,1731641443439,-227.846791,0.00016238,2]
[342244964,1731641443448,-151.0,0.00016238,2]
[342244965,1731641443458,-151.0,0.00016238,2]
[342244966,1731641443468,-394.491471,0.00016238,2]
[342244967,1731641443479,-394.491471,0.00016238,2]
[342244968,1731641443489,-359.543548,0.00016238,2]
[342244969,1731641443499,-359.543548,0.00016238,2]
[342244970,1731641443508,-151.0,0.00016238,2]
[342244971,1731641443517,-66469.54769151,0.00016238,2]
[342244972,1731641443529,-597.75201018,0.00016238,2]
[342244973,1731641443544,-3075.85339345,0.00016238,2]
[342244983,1731641446135,-320.0,0.00016238,2]
[342245006,1731642561134,-278.2825247,0.00013973,2]
[342245017,1731642632339,-121.7174753,0.00013973,2]
[342245018,1731642632348,-251.142233,0.00015246,2]
[342245020,1731642632357,-343.80864504,0.00015958,2]
[342245022,1731642632369,-8275.91175043,0.00015958,2]
[342245023,1731642632378,-200.0,0.0001597,2]
[342245024,1731642632389,-300.0,0.00016041,2]
[342245025,1731642632399,-300.0,0.00016043,2]
[342245026,1731642632408,-600.0,0.00016044,2]
[342245027,1731642632416,-600.0,0.00016211,2]
[342245028,1731642632425,-4055.41639494,0.00016237,2]
[342245029,1731642632434,-194.998,0.00016285,2]
[342245030,1731642632443,-391.0,0.000163,2]
[342245031,1731642632452,-151.0,0.00016335,2]
[342245032,1731642632466,-151.0,0.00016335,2]
[342245033,1731642632475,-152.054507,0.00016336,2]
[342245034,1731642632485,-151.0,0.00016336,2]
[342245035,1731642632495,-227.846791,0.00016336,2]
[342245036,1731642632504,-227.846791,0.00016336,2]
[342245037,1731642632513,-151.0,0.00016336,2]
[342245038,1731642632522,-188.1461927,0.00016338,2]
[342245039,1731642632531,-500.0,0.00016338,2]
[342245040,1731642632541,-500.0,0.00016338,2]
[342245041,1731642632550,-500.0,0.00016338,2]
[342245042,1731642632559,-500.0,0.00016338,2]
[342245043,1731642632568,-500.0,0.00016338,2]
[342245044,1731642632577,-226.74015994,0.00016338,2]
[342245045,1731642632592,-272.94065377,0.00016338,2]
[342245052,1731642638406,-0.31918629,0.00016338,2]
[342245053,1731642638415,-500.0,0.00016338,2]
[342245054,1731642638424,-500.0,0.00016338,2]
[342245055,1731642638433,-530.90162868,0.00016338,2]
[342245056,1731642638442,-460.56432571,0.00016338,2]
[342245065,1731642643213,-984.7273335,0.00016337,2]
[342245066,1731642643225,-602.225,0.00016337,2]
[342245068,1731642643500,-570.97538683,0.00016337,2]
[342245069,1731642643513,-1897.48867461,0.00016337,2]
[342245070,1731642643523,-39.43567429,0.00016338,2]
[342245071,1731642643534,-500.0,0.00016338,2]
[342245072,1731642643543,-151.0,0.00016338,2]
[342245073,1731642643552,-151.0,0.00016338,2]
[342245074,1731642643562,-152.010246,0.00016338,2]
[342245075,1731642643571,-151.332175,0.00016338,2]
[342245076,1731642643581,-319.926716,0.00016338,2]
[342245077,1731642643591,-319.926716,0.00016338,2]
[342245078,1731642643601,-319.926716,0.00016338,2]
[342245079,1731642643611,-319.926716,0.00016338,2]
[342245080,1731642643622,-319.926716,0.00016338,2]
[342245081,1731642643631,-319.926716,0.00016338,2]
[342245082,1731642643642,-319.926716,0.00016338,2]
[342245083,1731642643652,-319.926716,0.00016338,2]
[342245084,1731642643661,-319.926716,0.00016338,2]
[342245085,1731642643671,-319.926716,0.00016338,2]
[342245086,1731642643682,-319.926716,0.00016338,2]
[342245087,1731642643692,-319.926716,0.00016338,2]
[342245088,1731642643702,-319.926716,0.00016338,2]
[342245089,1731642643711,-319.926716,0.00016338,2]
[342245090,1731642643721,-151.0,0.00016338,2]
[342245091,1731642643730,-151.0,0.00016338,2]
[342245092,1731642643739,-236.225174,0.00016338,2]
[342245093,1731642643749,-227.846791,0.00016338,2]
[342245094,1731642643758,-227.846791,0.00016338,2]
[342245095,1731642643768,-197.13650564,0.00016338,2]
[342245339,1731643838298,-400.0,0.00013973,2]
[342245340,1731643838308,-182.41753839,0.00015077,2]
[342245352,1731643843299,-80.82803661,0.00015077,2]
[342245353,1731643843309,-883.10073739,0.00015316,2]
[342245354,1731643843320,-44.84891211,0.00015316,2]
[342245355,1731643843330,-465.00020488,0.00015828,2]
[342245356,1731643843339,-300.0,0.00015906,2]
[342245357,1731643843348,-300.0,0.00015906,2]
[342245359,1731643843357,-80.53716937,0.00015995,2]
[342245369,1731643846325,-3914.12570853,0.00015995,2]
[342245372,1731643882718,532.66,0.00010959,2]
[342245374,1731644135411,1000.0,0.00027,60]
[342245375,1731644276899,5000.0,0.000151,14]
[342245376,1731644285118,5000.0,0.000151,14]
[342245377,1731644294510,5000.0,0.000151,14]
[342245379,1731644303187,5000.0,0.000151,14]
[342245380,1731644432702,1822.85835903,0.00027,60]
[342245381,1731644496933,5000.0,0.000151,14]
[342245382,1731644505642,5000.0,0.000151,14]
[342245383,1731644514187,5000.0,0.000151,14]
[342245384,1731644522024,5000.0,0.000151,14]
[342245393,1731644967104,-400.0,0.00013155,2]
[342245394,1731644967124,-138.77230974,0.00013288,2]
[342245416,1731645032399,-261.22769026,0.00013155,2]
[342245417,1731645032409,-261.22769026,0.00013288,2]
[342245418,1731645032419,-400.0,0.00013973,2]
[342245419,1731645032428,-379.46917808,0.00014535,2]
[342245489,1731645038622,-120.53082192,0.00014535,2]
[342245491,1731645038632,-263.2455768,0.00014665,2]
[342245494,1731645038641,-500.0,0.000153,2]
[342245496,1731645038651,-300.0,0.00015838,2]
[342245498,1731645038660,-300.0,0.00015838,2]
[342245500,1731645038669,-8619.72039547,0.00015848,2]
[342245502,1731645038679,-203.0,0.0001602,2]
[342245504,1731645038688,-600.0,0.00016044,2]
[342245506,1731645038697,-301.64560335,0.00016065,2]
[342245507,1731645038706,-195.05846056,0.00016097,2]
[342245508,1731645038716,-500.0,0.00016097,2]
[342245509,1731645038725,-4820.28,0.00016097,2]
[342245510,1731645038735,-350.87610283,0.00016097,2]
[342245511,1731645038744,-5218.5,0.00016097,2]
[342245512,1731645038753,-737.25,0.00016097,2]
[342245513,1731645038763,-500.0,0.00016097,2]
[342245514,1731645038773,-603.13266136,0.00016097,2]
[342245515,1731645038782,-2446.31,0.00016097,2]
[342245516,1731645038791,-772.38,0.00016097,2]
[342245517,1731645038800,-878.07,0.00016097,2]
[342245518,1731645038809,-30686.3,0.00016097,2]
[342245519,1731645038819,-536.85994118,0.00016097,2]
[342245520,1731645038828,-500.0,0.00016097,2]
[342245521,1731645038837,-500.0,0.00016097,2]
[342245522,1731645038847,-1110.64,0.00016097,2]
[342245523,1731645038856,-500.0,0.00016097,2]
[342245524,1731645038865,-500.0,0.00016097,2]
[342245525,1731645038875,-500.0,0.00016097,2]
[342245526,1731645038884,-500.0,0.00016097,2]
[342245527,1731645038893,-278.39511846,0.00016097,2]
[342245528,1731645038902,-273.31351633,0.00016097,2]
[342245529,1731645038911,-500.0,0.00016097,2]
[342245530,1731645038920,-500.0,0.00016097,2]
[342245531,1731645038930,-458.29744055,0.00016097,2]
[342245532,1731645038938,-500.0,0.00016097,2]
[342245533,1731645038947,-408.3764256,0.00016097,2]
[342245534,1731645038956,-28403.74,0.00016097,2]
[342245535,1731645038965,-267.02873111,0.00016097,2]
[342245536,1731645038975,-163.65270236,0.00016098,2]
[342245537,1731645038983,-344.65985995,0.00016098,2]
[342245538,1731645038992,-500.0,0.00016098,2]
[342245539,1731645039001,-2249.49,0.00016098,2]
[342245540,1731645039010,-500.0,0.00016098,2]
[342245541,1731645039019,-827.55,0.00016098,2]
[342245542,1731645039029,-500.0,0.00016098,2]
[342245543,1731645039038,-348.01673476,0.00016098,2]
[342245544,1731645039047,-531.92040292,0.00016098,2]
[342245545,1731645039055,-500.0,0.00016098,2]
[342245546,1731645039064,-512.58873141,0.00016098,2]
[342245547,1731645039073,-500.0,0.00016098,2]
[342245548,1731645039082,-3299.8,0.00016098,2]
[342245549,1731645039094,-1097.37,0.00016098,2]
[342245550,1731645039104,-1761.2,0.00016098,2]
[342245551,1731645039112,-500.0,0.00016098,2]
[342245552,1731645039122,-539.41064134,0.00016098,2]
[342245553,1731645039131,-733.42,0.00016098,2]
[342245554,1731645039140,-504.75375324,0.00016098,2]
[342245555,1731645039149,-500.0,0.00016098,2]
[342245556,1731645039159,-1079.08,0.00016098,2]
[342245557,1731645039168,-500.0,0.00016098,2]
[342245558,1731645039178,-500.0,0.00016098,2]
[342245559,1731645039187,-500.0,0.00016098,2]
[342245560,1731645039196,-500.0,0.00016098,2]
[342245561,1731645039206,-500.0,0.00016098,2]
[342245562,1731645039216,-500.0,0.00016098,2]
[342245563,1731645039225,-500.0,0.00016098,2]
[342245564,1731645039235,-500.0,0.00016098,2]
[342245565,1731645039244,-500.0,0.00016098,2]
[342245566,1731645039253,-477.77438407,0.00016098,2]
[342245567,1731645039262,-4410.75938201,0.00016098,2]
[342245598,1731645046391,-10179.89657885,0.00015937,2]
[342245600,1731645046401,-4682.29061799,0.00016098,2]
[342245601,1731645046410,-500.0,0.00016098,2]
[342245602,1731645046419,-741.71,0.00016098,2]
[342245603,1731645046429,-500.0,0.00016098,2]
[342245604,1731645046438,-692.29,0.00016098,2]
[342245605,1731645046447,-347.35134823,0.00016098,2]
[342245610,1731645210486,-1436.09040827,0.00016378,7]
[342245611,1731645210524,-500.0,0.00016438,30]
[342245612,1731645210546,-500.0,0.00016438,30]
[342245613,1731645210568,-500.0,0.00016438,30]
[342245614,1731645210593,-500.0,0.00016438,30]
[342245615,1731645210616,-500.0,0.00016438,30]
[342245616,1731645210638,-545.51171811,0.00016438,30]
[342245617,1731645210681,-15518.39787362,0.00017,7]
[342245618,1731645229988,-2000.0,0.00017,7]
[342245619,1731645294338,-20000.0,0.00017,7]
[342245633,1731645355074,-5000.0,0.00017,7]
[342245634,1731645563176,-10000.0,0.00017,7]
[342245636,1731646155130,-400.0,0.00012636,2]
[342245637,1731646155150,-100.14997858,0.00012764,2]
[342245638,1731646171966,150.0,0.00015096,14]
[342245639,1731646194637,2078.29410132,0.00027,60]
[342245640,1731646225909,164.4,0.00015096,14]
[342245710,1731646238671,-299.85002142,0.0001251,2]
[342245711,1731646238680,-299.85002142,0.00012636,2]
[342245712,1731646238689,-400.0,0.00013973,2]
[342245713,1731646238698,-249.7676651,0.00014772,2]
[342245714,1731646238707,-300.0,0.00015749,2]
[342245715,1731646238716,-300.0,0.00015749,2]
[342245716,1731646238725,-8619.72039547,0.0001575,2]
[342245717,1731646238734,-465.00001024,0.00015788,2]
[342245718,1731646238743,-581.72280646,0.00015995,2]
[342245719,1731646238752,-205.66321571,0.00015996,2]
[342245720,1731646238761,-2816.97021355,0.00015996,2]
[342245721,1731646238771,-500.0,0.00015996,2]
[342245723,1731646238780,-503.33297451,0.00015996,2]
[342245724,1731646238789,-500.0,0.00015996,2]